fUST/lending_fUST_20250717
["ID","MTS","AMOUNT","RATE_DAILY","PERIOD"]
[372654869,1752735055591,-709.79,0.0002142,2]
[372654870,1752735055601,-460.0,0.0002142,2]
[372654871,1752735055611,-645.82,0.0002142,2]
[372654872,1752735055621,-460.0,0.00021421,2]
[372654873,1752735055631,-829.95,0.00021421,2]
[372654874,1752735055640,-339.99999998,0.00021421,2]
[372654875,1752735055650,-151.0,0.00021423,2]
[372654876,1752735055661,-151.0,0.00021423,2]
[372654877,1752735055671,-445.0,0.00021423,2]
[372654878,1752735055681,-825.0,0.00021423,2]
[372654879,1752735055691,-443.0,0.00021423,2]
[372654880,1752735055700,-151.0,0.00021423,2]
[372654881,1752735055710,-151.0,0.00021423,2]
[372654882,1752735055720,-151.0,0.00021423,2]
[372654883,1752735055730,-151.0,0.00021423,2]
[372654884,1752735055741,-377.3,0.00021458,4]
[372654885,1752735055750,-160.0,0.00021495,12]
[372654886,1752735055760,-161.10523437,0.00021495,5]
[372654887,1752735055771,-12520.75269904,0.000215,2]
[372654888,1752735055781,-700.0,0.00021512,2]
[372654889,1752735055790,-3000.0,0.00021555,2]
[372654890,1752735055800,-13345.35673131,0.00021555,5]
[372654891,1752735055810,-235.0,0.00021568,2]
[372654892,1752735055821,-587.0,0.00021568,2]
[372654893,1752735055831,-3000.0,0.00021591,2]
[372654894,1752735055843,-154.370341,0.00021591,2]
[372654895,1752735055853,-154.370341,0.00021591,2]
[372654896,1752735055864,-151.0,0.00021591,2]
[372654897,1752735055874,-151.0,0.00021591,2]
[372654898,1752735055884,-693.221973,0.00021591,2]
[372654899,1752735055894,-693.221973,0.00021591,2]
[372654900,1752735055904,-469.11580098,0.00021594,2]
[372654901,1752735055915,-1476.81,0.00021594,2]
[372654902,1752735055925,-2996.48,0.00021594,2]
[372654903,1752735055935,-929.92,0.00021594,2]
[372654904,1752735055944,-156.013808,0.0002162,3]
[372654905,1752735055954,-151.0,0.00021659,2]
[372654906,1752735055964,-190.462603,0.00021659,2]
[372654907,1752735055974,-3118.18675493,0.0002166,2]
[372654908,1752735055983,-985.20083709,0.00021664,2]
[372654909,1752735055993,-2500.0,0.00021664,2]
[372654910,1752735056003,-2500.0,0.00021664,2]
[372654911,1752735056012,-525.15971395,0.00021664,2]
[372654912,1752735056022,-560.0,0.0002168,2]
[372654913,1752735056033,-3812.92271732,0.00021683,2]
[372654914,1752735056043,-460.0,0.00021685,2]
[372654915,1752735056052,-460.0,0.00021685,2]
[372654916,1752735056062,-1843.02,0.00021685,2]
[372654917,1752735056072,-3457.88,0.00021688,2]
[372654918,1752735056082,-789.83,0.00021688,2]
[372654919,1752735056093,-4699.05,0.00021688,2]
[372654920,1752735056103,-460.45,0.00021688,2]
[372654921,1752735056113,-2440.55,0.00021688,2]
[372654922,1752735056123,-1913.65,0.00021688,2]
[372654923,1752735056133,-460.0,0.00021688,2]
[372654924,1752735056143,-1594.34,0.00021688,2]
[372654925,1752735056153,-626.01,0.00021688,2]
[372654926,1752735056163,-460.0,0.00021689,2]
[372654927,1752735056173,-460.0,0.00021689,2]
[372654928,1752735056183,-1300.71,0.00021689,2]
[372654929,1752735056193,-691.63,0.00021689,2]
[372654930,1752735056203,-474.33,0.00021689,2]
[372654931,1752735056216,-646.42,0.00021689,2]
[372654932,1752735056226,-498.58,0.00021689,2]
[372654933,1752735056236,-913.15,0.00021689,2]
[372654934,1752735056247,-531.78,0.00021689,2]
[372654935,1752735056256,-460.0,0.0002169,2]
[372654936,1752735056267,-732.55,0.00021692,2]
[372654937,1752735056276,-551.29,0.00021692,2]
[372654938,1752735056288,-460.0,0.00021692,2]
[372654939,1752735056298,-2703.32,0.00021692,2]
[372654940,1752735056308,-799.66,0.00021692,2]
[372654941,1752735056318,-460.0,0.00021692,2]
[372654942,1752735056328,-724.56,0.00021692,2]
[372654943,1752735056338,-151.0,0.00021693,2]
[372654944,1752735056349,-460.0,0.00021693,2]
[372654945,1752735056360,-1211.48,0.00021693,2]
[372654946,1752735056370,-664.88,0.00021693,2]
[372654947,1752735056380,-1887.15,0.00021693,2]
[372654948,1752735056390,-507.28,0.00021693,2]
[372654949,1752735056400,-460.0,0.00021694,2]
[372654950,1752735056410,-522.87,0.00021694,2]
[372654951,1752735056419,-460.0,0.00021694,2]
[372654952,1752735056429,-460.0,0.00021694,2]
[372654953,1752735056440,-460.0,0.00021694,2]
[372654954,1752735056449,-640.23,0.00021694,2]
[372654955,1752735056459,-625.48,0.00021694,2]
[372654956,1752735056469,-709.79,0.00021694,2]
[372654957,1752735056480,-460.0,0.00021694,2]
[372654958,1752735056491,-645.82,0.00021694,2]
[372654959,1752735056502,-460.0,0.00021695,2]
[372654960,1752735056511,-829.95,0.00021695,2]
[372654961,1752735056522,-151.0,0.00021697,2]
[372654962,1752735056532,-198.0,0.00021697,2]
[372654963,1752735056542,-445.0,0.00021697,2]
[372654964,1752735056552,-825.0,0.00021697,2]
[372654965,1752735056562,-2000.0,0.00021744,2]
[372654966,1752735056572,-13345.35673131,0.00021762,5]
[372654967,1752735056582,-2351.0,0.00021778,2]
[372654968,1752735056594,-642.0,0.000218,2]
[372654969,1752735056604,-500.0,0.00021816,2]
[372654970,1752735056614,-1000.0,0.00021816,2]
[372654971,1752735056625,-501.97751132,0.00021816,2]
[372654972,1752735056635,-1000.0,0.00021816,2]
[372654973,1752735056645,-1000.0,0.00021816,2]
[372654974,1752735056655,-12509.86651678,0.00021816,2]
[372654975,1752735056665,-349.349799,0.00021841,2]
[372654976,1752735056674,-1476.81,0.00021868,2]
[372654977,1752735056684,-2996.48,0.00021868,2]
[372654978,1752735056694,-929.92,0.00021868,2]
[372654979,1752735056704,-377.3,0.00021903,4]
[372654980,1752735056714,-114424.95216023,0.00021916,2]
[372654981,1752735056724,-151.0,0.00021916,2]
[372654982,1752735056734,-151.0,0.00021916,2]
[372654983,1752735056744,-151.0,0.00021916,2]
[372654984,1752735056754,-151.0,0.00021916,2]
[372654985,1752735056765,-151.0,0.00021916,2]
[372654986,1752735056775,-151.0,0.00021916,2]
[372654987,1752735056786,-500.0,0.00021917,2]
[372654988,1752735056796,-500.0,0.00021917,2]
[372654989,1752735056806,-500.0,0.00021917,2]
[372654990,1752735056817,-500.0,0.00021917,2]
[372654991,1752735056828,-500.0,0.00021917,2]
[372654992,1752735056838,-500.0,0.00021917,2]
[372654993,1752735056851,-500.0,0.00021917,2]
[372654994,1752735056861,-510.76042761,0.00021917,2]
[372654995,1752735056871,-428.204466,0.00021918,2]
[372654996,1752735056881,-428.204466,0.00021918,2]
[372654997,1752735056891,-169.946481,0.00021918,2]
[372654998,1752735056901,-169.946481,0.00021918,2]
[372654999,1752735056911,-169.946481,0.00021918,2]
[372655000,1752735056920,-169.946481,0.00021918,2]
[372655001,1752735056931,-172.0,0.00021918,2]
[372655002,1752735056940,-172.0,0.00021918,2]
[372655003,1752735056950,-172.0,0.00021918,2]
[372655004,1752735056960,-152.0,0.00021918,2]
[372655005,1752735056970,-173.49686459,0.00021918,2]
[372655006,1752735056980,-152.0,0.00021918,2]
[372655007,1752735056990,-172.0,0.00021918,2]
[372655008,1752735057000,-152.0,0.00021918,2]
[372655009,1752735057010,-172.0,0.00021918,2]
[372655010,1752735057021,-152.0,0.00021918,2]
[372655011,1752735057031,-152.0,0.00021918,2]
[372655012,1752735057041,-152.0,0.00021918,2]
[372655013,1752735057052,-152.0,0.00021918,2]
[372655014,1752735057063,-152.0,0.00021918,2]
[372655015,1752735057073,-152.0,0.00021918,2]
[372655016,1752735057083,-152.0,0.00021918,2]
[372655017,1752735057094,-152.0,0.00021918,2]
[372655018,1752735057103,-152.0,0.00021918,2]
[372655019,1752735057113,-152.0,0.00021918,2]
[372655020,1752735057123,-152.0,0.00021918,2]
[372655021,1752735057132,-152.0,0.00021918,2]
[372655022,1752735057142,-152.0,0.00021918,2]
[372655023,1752735057151,-152.0,0.00021918,2]
[372655024,1752735057161,-152.0,0.00021918,2]
[372655025,1752735057171,-152.0,0.00021918,2]
[372655026,1752735057180,-152.0,0.00021918,2]
[372655027,1752735057190,-152.0,0.00021918,2]
[372655028,1752735057200,-152.0,0.00021918,2]
[372655029,1752735057212,-152.0,0.00021918,2]
[372655030,1752735057222,-152.0,0.00021918,2]
[372655031,1752735057232,-152.0,0.00021918,2]
[372655032,1752735057242,-152.0,0.00021918,2]
[372655033,1752735057253,-152.0,0.00021918,2]
[372655034,1752735057263,-152.0,0.00021918,2]
[372655035,1752735057273,-152.0,0.00021918,2]
[372655036,1752735057283,-152.0,0.00021918,2]
[372655037,1752735057295,-152.0,0.00021918,2]
[372655038,1752735057306,-152.0,0.00021918,2]
[372655039,1752735057316,-152.0,0.00021918,2]
[372655040,1752735057326,-152.0,0.00021918,2]
[372655041,1752735057335,-152.0,0.00021918,2]
[372655042,1752735057346,-152.0,0.00021918,2]
[372655043,1752735057356,-152.0,0.00021918,2]
[372655044,1752735057367,-152.0,0.00021918,2]
[372655045,1752735057377,-152.0,0.00021918,2]
[372655046,1752735057387,-152.0,0.00021918,2]
[372655047,1752735057397,-152.0,0.00021918,2]
[372655048,1752735057406,-152.0,0.00021918,2]
[372655049,1752735057416,-152.0,0.00021918,2]
[372655050,1752735057426,-152.0,0.00021918,2]
[372655051,1752735057436,-152.0,0.00021918,2]
[372655052,1752735057446,-152.0,0.00021918,2]
[372655053,1752735057456,-152.0,0.00021918,2]
[372655054,1752735057466,-152.0,0.00021918,2]
[372655055,1752735057475,-152.0,0.00021918,2]
[372655056,1752735057485,-152.0,0.00021918,2]
[372655057,1752735057495,-152.0,0.00021918,2]
[372655058,1752735057505,-152.0,0.00021918,2]
[372655059,1752735057515,-152.0,0.00021918,2]
[372655060,1752735057524,-152.0,0.00021918,2]
[372655061,1752735057534,-152.0,0.00021918,2]
[372655062,1752735057544,-152.0,0.00021918,2]
[372655063,1752735057554,-152.0,0.00021918,2]
[372655064,1752735057564,-152.0,0.00021918,2]
[372655065,1752735057574,-152.0,0.00021918,2]
[372655066,1752735057584,-152.0,0.00021918,2]
[372655067,1752735057595,-159.40812346,0.00021918,2]
[372655068,1752735057605,-152.0,0.00021918,2]
[372655069,1752735057615,-152.0,0.00021918,2]
[372655070,1752735057625,-150.0,0.00021918,2]
[372655071,1752735057635,-200.0,0.00021918,2]
[372655072,1752735057645,-189.359729,0.00021918,7]
[372655073,1752735057656,-189.359729,0.00021918,7]
[372655074,1752735057666,-504.272118,0.00021918,7]
[372655075,1752735057677,-504.272118,0.00021918,7]
[372655076,1752735057687,-152.256303,0.00021918,7]
[372655077,1752735057698,-169.946481,0.00021918,7]
[372655078,1752735057708,-169.946481,0.00021918,7]
[372655079,1752735057719,-158.38,0.0002192,4]
[372655080,1752735057857,-159.7,0.0002192,4]
[372655081,1752735057867,-460.0,0.00021959,2]
[372655082,1752735057876,-460.0,0.00021959,2]
[372655083,1752735057886,-1843.02,0.00021959,2]
[372655084,1752735057896,-3457.88,0.00021962,2]
[372655085,1752735057906,-789.83,0.00021962,2]
[372655086,1752735057916,-4699.05,0.00021962,2]
[372655087,1752735057926,-460.45,0.00021962,2]
[372655088,1752735057937,-2440.55,0.00021962,2]
[372655089,1752735057946,-1913.65,0.00021962,2]
[372655090,1752735057956,-460.0,0.00021962,2]
[372655091,1752735057966,-1594.34,0.00021962,2]
[372655092,1752735057976,-626.01,0.00021962,2]
[372655093,1752735057985,-460.0,0.00021963,2]
[372655094,1752735057995,-460.0,0.00021963,2]
[372655095,1752735058006,-1300.71,0.00021963,2]
[372655096,1752735058016,-691.63,0.00021963,2]
[372655097,1752735058026,-474.33,0.00021963,2]
[372655098,1752735058037,-646.42,0.00021963,2]
[372655099,1752735058047,-498.58,0.00021963,2]
[372655100,1752735058057,-913.15,0.00021963,2]
[372655101,1752735058066,-531.78,0.00021963,2]
[372655102,1752735058075,-343.73267151,0.00021964,2]
[372655103,1752735058084,-732.55,0.00021966,2]
[372655104,1752735058094,-551.29,0.00021966,2]
[372655105,1752735058104,-460.0,0.00021966,2]
[372655106,1752735058113,-2703.32,0.00021966,2]
[372655107,1752735058123,-799.66,0.00021966,2]
[372655108,1752735058132,-460.0,0.00021966,2]
[372655109,1752735058141,-724.56,0.00021966,2]
[372655110,1752735058150,-460.0,0.00021967,2]
[372655111,1752735058160,-1211.48,0.00021967,2]
[372655112,1752735058170,-664.88,0.00021967,2]
[372655113,1752735058180,-1887.15,0.00021967,2]
[372655114,1752735058189,-507.28,0.00021967,2]
[372655115,1752735058200,-460.0,0.00021968,2]
[372655116,1752735058215,-522.87,0.00021968,2]
[372655117,1752735058225,-460.0,0.00021968,2]
[372655118,1752735058235,-460.0,0.00021968,2]
[372655119,1752735058244,-460.0,0.00021968,2]
[372655120,1752735058255,-640.23,0.00021968,2]
[372655121,1752735058265,-625.48,0.00021968,2]
[372655122,1752735058274,-709.79,0.00021968,2]
[372655123,1752735058285,-460.0,0.00021968,2]
[372655124,1752735058296,-645.82,0.00021968,2]
[372655125,1752735058306,-13345.35673131,0.00021969,6]
[372655126,1752735058315,-460.0,0.00021969,2]
[372655127,1752735058324,-829.95,0.00021969,2]
[372655128,1752735058334,-151.0,0.00021971,2]
[372655129,1752735058345,-445.0,0.00021971,2]
[372655130,1752735058355,-825.0,0.00021971,2]
[372655131,1752735058365,-500.0,0.00021973,2]
[372655132,1752735058374,-503.52444387,0.00021973,2]
[372655133,1752735058385,-500.0,0.00021973,2]
[372655134,1752735058394,-500.0,0.00021973,2]
[372655135,1752735058403,-500.0,0.00021973,2]
[372655136,1752735058413,-500.0,0.00021973,2]
[372655137,1752735058422,-500.0,0.00021973,2]
[372655138,1752735058432,-158.41884808,0.00021973,2]
[372655139,1752735058441,-500.0,0.00021973,2]
[372655140,1752735058451,-500.0,0.00021973,2]
[372655141,1752735058461,-500.0,0.00021973,2]
[372655142,1752735058470,-500.0,0.00021973,2]
[372655143,1752735058480,-158.12741437,0.00021973,2]
[372655144,1752735058490,-500.0,0.00021973,2]
[372655145,1752735058499,-500.0,0.00021973,2]
[372655146,1752735058509,-160.12959675,0.00021973,2]
[372655147,1752735058519,-152.10688042,0.00021973,2]
[372655148,1752735058528,-158.22056861,0.00021973,2]
[372655149,1752735058537,-500.0,0.00021973,2]
[372655150,1752735058547,-158.04118509,0.00021973,2]
[372655151,1752735058556,-155.19178196,0.00021973,2]
[372655152,1752735058566,-150.0,0.00021973,2]
[372655153,1752735058575,-407.11799922,0.00021973,2]
[372655154,1752735058585,-158.12713293,0.00021973,2]
[372655155,1752735058595,-500.0,0.00021973,2]
[372655156,1752735058605,-158.1108441,0.00021973,2]
[372655157,1752735058614,-500.0,0.00021973,2]
[372655158,1752735058624,-501.08554331,0.00021973,2]
[372655159,1752735058634,-571.16357736,0.00021973,2]
[372655160,1752735058643,-500.0,0.00021973,2]
[372655161,1752735058653,-500.0,0.00021973,2]
[372655162,1752735058662,-521.83916639,0.00021973,2]
[372655163,1752735058672,-500.0,0.00021973,2]
[372655164,1752735058682,-500.0,0.00021973,2]
[372655165,1752735058691,-160.10287166,0.00021973,2]
[372655166,1752735058701,-500.0,0.00021973,2]
[372655167,1752735058710,-500.0,0.00021973,2]
[372655168,1752735058719,-260.14798762,0.00021973,2]
[372655169,1752735058729,-500.0,0.00021973,2]
[372655170,1752735058739,-500.0,0.00021973,2]
[372655171,1752735058748,-522.70810626,0.00021973,2]
[372655172,1752735058758,-500.0,0.00021973,2]
[372655173,1752735058767,-500.0,0.00021973,2]
[372655174,1752735058777,-500.0,0.00021973,2]
[372655175,1752735058786,-500.50308032,0.00021973,2]
[372655176,1752735058795,-500.0,0.00021973,2]
[372655177,1752735058805,-501.00855432,0.00021973,2]
[372655178,1752735058815,-500.0,0.00021973,2]
[372655179,1752735058825,-500.0,0.00021973,2]
[372655180,1752735058834,-501.47029748,0.00021973,2]
[372655181,1752735058843,-618.5967777,0.00021973,2]
[372655182,1752735058854,-500.0,0.00021973,2]
[372655183,1752735058863,-500.0,0.00021973,2]
[372655184,1752735058872,-500.0,0.00021973,2]
[372655185,1752735058882,-500.0,0.00021973,2]
[372655186,1752735058892,-204.467065,0.00021973,7]
[372655187,1752735058902,-151.0,0.00021973,7]
[372655188,1752735058912,-151.0,0.00021973,7]
[372655189,1752735058921,-152.0,0.00022,2]
[372655190,1752735058931,-500.0,0.00022,8]
[372655191,1752735058941,-75218.82571281,0.00022,2]
[372655192,1752735058951,-352.61950143,0.00022,2]
[372655193,1752735058961,-340.78315669,0.00022,14]
[372655194,1752735058970,-1157.59990076,0.00022,2]
[372655195,1752735058980,-160.0,0.00022,7]
[372655196,1752735058989,-32866.12,0.00022,7]
[372655197,1752735059001,-56456.42647882,0.00022,2]
[372655198,1752735059010,-4439.38,0.00022,7]
[372655199,1752735059020,-7494.1932499,0.00022,2]
[372655200,1752735059030,-63405.4,0.00022,2]
[372655201,1752735059039,-7962.0,0.00022,7]
[372655202,1752735059049,-151.0,0.00022,7]
[372655203,1752735059058,-151.0,0.00022,7]
[372655204,1752735059067,-216.054438,0.00022,7]
[372655205,1752735059077,-216.054438,0.00022,7]
[372655206,1752735059086,-151.0,0.00022,7]
[372655207,1752735059096,-2218.975137,0.00022,7]
[372655208,1752735059106,-2218.975137,0.00022,7]
[372655209,1752735059115,-428.204466,0.00022,7]
[372655210,1752735059124,-514.852955,0.00022,7]
[372655211,1752735059133,-428.204466,0.00022,7]
[372655212,1752735059143,-514.852955,0.00022,7]
[372655213,1752735059152,-151.0,0.00022,7]
[372655214,1752735059161,-151.0,0.00022,7]
[372655215,1752735059171,-151.0,0.00022,7]
[372655216,1752735059180,-151.0,0.00022,7]
[372655217,1752735059189,-154.370341,0.00022,7]
[372655218,1752735059199,-154.370341,0.00022,7]
[372655219,1752735059215,-151.0,0.00022,7]
[372655220,1752735059225,-151.0,0.00022,7]
[372655221,1752735059234,-151.0,0.00022,7]
[372655222,1752735059243,-151.0,0.00022,7]
[372655223,1752735059254,-160.0,0.00022,7]
[372655224,1752735059264,-189.359729,0.00022,7]
[372655225,1752735059273,-189.359729,0.00022,7]
[372655226,1752735059283,-504.272118,0.00022,7]
[372655227,1752735059294,-504.272118,0.00022,7]
[372655228,1752735059303,-151.0,0.00022,7]
[372655229,1752735059312,-151.0,0.00022,7]
[372655230,1752735059322,-12607.95677342,0.00022,7]
[372655231,1752735059331,-693.221973,0.00022,7]
[372655232,1752735059340,-693.221973,0.00022,7]
[372655233,1752735059350,-214.44804168,0.00022,7]
[372655234,1752735059359,-169.946481,0.00022,7]
[372655235,1752735059368,-169.946481,0.00022,7]
[372655236,1752735059377,-476.16111942,0.00022,7]
[372655237,1752735059387,-4000.0,0.00022028,4]
[372655238,1752735059396,-162.95721284,0.00022055,2]
[372655239,1752735059405,-500.0,0.000221,8]
[372655240,1752735059414,-5000.0,0.00022132,2]
[372655241,1752735059423,-3500.0,0.00022139,2]
[372655242,1752735059432,-1476.81,0.00022142,2]
[372655243,1752735059441,-2996.48,0.00022142,2]
[372655244,1752735059451,-929.92,0.00022142,2]
[372655245,1752735059460,-162.95721284,0.00022164,2]
[372655246,1752735059469,-13345.35673131,0.00022176,6]
[372655247,1752735059478,-2526.24735197,0.00022212,2]
[372655248,1752735059488,-1988.74686382,0.00022212,2]
[372655249,1752735059497,-883.0,0.00022222,2]
[372655250,1752735059507,-660.0,0.00022228,2]
[372655251,1752735059516,-460.0,0.00022233,2]
[372655252,1752735059526,-460.0,0.00022233,2]
[372655253,1752735059535,-1843.02,0.00022233,2]
[372655254,1752735059546,-3457.88,0.00022236,2]
[372655255,1752735059556,-789.83,0.00022236,2]
[372655256,1752735059565,-4699.05,0.00022236,2]
[372655257,1752735059574,-460.45,0.00022236,2]
[372655258,1752735059584,-2440.55,0.00022236,2]
[372655259,1752735059593,-1913.65,0.00022236,2]
[372655260,1752735059605,-359.39687275,0.00022236,2]
[372655261,1752735059614,-1594.34,0.00022236,2]
[372655262,1752735059624,-626.01,0.00022236,2]
[372655263,1752735059634,-460.0,0.00022237,2]
[372655264,1752735059644,-460.0,0.00022237,2]
[372655265,1752735059654,-1300.71,0.00022237,2]
[372655266,1752735059663,-691.63,0.00022237,2]
[372655267,1752735059672,-474.33,0.00022237,2]
[372655268,1752735059682,-646.42,0.00022237,2]
[372655269,1752735059691,-498.58,0.00022237,2]
[372655270,1752735059701,-913.15,0.00022237,2]
[372655271,1752735059711,-531.78,0.00022237,2]
[372655272,1752735059720,-732.55,0.0002224,2]
[372655273,1752735059730,-551.29,0.0002224,2]
[372655274,1752735059740,-460.0,0.0002224,2]
[372655275,1752735059750,-2703.32,0.0002224,2]
[372655276,1752735059759,-799.66,0.0002224,2]
[372655277,1752735059769,-460.0,0.0002224,2]
[372655278,1752735059779,-724.56,0.0002224,2]
[372655279,1752735059788,-460.0,0.00022241,2]
[372655280,1752735059798,-1211.48,0.00022241,2]
[372655281,1752735059808,-664.88,0.00022241,2]
[372655282,1752735059817,-1887.15,0.00022241,2]
[372655283,1752735059827,-507.28,0.00022241,2]
[372655284,1752735059836,-151.0,0.00022242,7]
[372655285,1752735059847,-151.0,0.00022242,7]
[372655286,1752735059858,-460.0,0.00022242,2]
[372655287,1752735059868,-522.87,0.00022242,2]
[372655288,1752735059878,-460.0,0.00022242,2]
[372655289,1752735059887,-460.0,0.00022242,2]
[372655290,1752735059897,-460.0,0.00022242,2]
[372655291,1752735059907,-640.23,0.00022242,2]
[372655292,1752735059916,-625.48,0.00022242,2]
[372655293,1752735059926,-709.79,0.00022242,2]
[372655294,1752735059936,-460.0,0.00022242,2]
[372655295,1752735059946,-645.82,0.00022242,2]
[372655296,1752735059955,-460.0,0.00022243,2]
[372655297,1752735059965,-829.95,0.00022243,2]
[372655298,1752735059974,-245.0,0.00022245,2]
[372655299,1752735059984,-445.0,0.00022245,2]
[372655300,1752735059996,-825.0,0.00022245,2]
[372655301,1752735060005,-162.95721284,0.00022274,2]
[372655302,1752735060015,-3812.92271732,0.00022277,2]
[372655303,1752735060025,-2583.76986285,0.00022292,2]
[372655304,1752735060035,-150.0,0.00022295,2]
[372655305,1752735060045,-11021.80062371,0.000223,2]
[372655306,1752735060055,-928.17295174,0.00022333,3]
[372655307,1752735060065,-202.08182537,0.00022333,3]
[372655308,1752735060075,-377.3,0.00022348,5]
[372655309,1752735060085,-193.2450441,0.00022364,2]
[372655310,1752735060095,-1500.0,0.00022364,2]
[372655311,1752735060105,-1500.0,0.00022364,2]
[372655312,1752735060114,-150.0,0.00022377,2]
[372655313,1752735060124,-150.0,0.00022377,2]
[372655314,1752735060134,-150.0,0.00022377,2]
[372655315,1752735060144,-150.0,0.00022377,2]
[372655316,1752735060153,-150.0,0.00022377,2]
[372655317,1752735060163,-13345.35673131,0.00022383,7]
[372655318,1752735060173,-162.95721284,0.00022384,2]
[372655319,1752735060183,-1476.81,0.00022416,2]
[372655320,1752735060192,-2996.48,0.00022416,2]
[372655321,1752735060202,-929.92,0.00022416,2]
[372655322,1752735060212,-514.852955,0.00022419,7]
[372655323,1752735060223,-514.852955,0.00022419,7]
[372655324,1752735060233,-151.0,0.00022419,7]
[372655325,1752735060242,-162.95721284,0.00022466,2]
[372655326,1752735060252,-231.28369723,0.00022474,2]
[372655327,1752735060265,-154.370341,0.00022486,7]
[372655328,1752735060275,-154.370341,0.00022486,7]
[372655329,1752735060286,-151.0,0.00022486,7]
[372655330,1752735060296,-151.0,0.00022486,7]
[372655331,1752735060305,-151.0,0.00022486,7]
[372655332,1752735060315,-693.221973,0.00022486,7]
[372655333,1752735060325,-693.221973,0.00022486,7]
[372655334,1752735060335,-38249.69487687,0.0002249,7]
[372655335,1752735060345,-1003.965593,0.000225,2]
[372655336,1752735060355,-565.3232665,0.00022507,2]
[372655337,1752735060365,-460.0,0.00022507,2]
[372655338,1752735060374,-1843.02,0.00022507,2]
[372655339,1752735060384,-3457.88,0.0002251,2]
[372655340,1752735060393,-789.83,0.0002251,2]
[372655341,1752735060403,-4699.05,0.0002251,2]
[372655342,1752735060412,-460.45,0.0002251,2]
[372655343,1752735060421,-2440.55,0.0002251,2]
[372655344,1752735060431,-1913.65,0.0002251,2]
[372655345,1752735060441,-1594.34,0.0002251,2]
[372655346,1752735060450,-626.01,0.0002251,2]
[372655347,1752735060459,-266.72264018,0.00022511,2]
[372655348,1752735060469,-460.0,0.00022511,2]
[372655349,1752735060478,-1300.71,0.00022511,2]
[372655350,1752735060488,-691.63,0.00022511,2]
[372655351,1752735060497,-474.33,0.00022511,2]
[372655352,1752735060507,-646.42,0.00022511,2]
[372655353,1752735060516,-498.58,0.00022511,2]
[372655354,1752735060526,-913.15,0.00022511,2]
[372655355,1752735060537,-531.78,0.00022511,2]
[372655356,1752735060546,-151.0,0.00022512,7]
[372655357,1752735060556,-216.661554,0.00022512,7]
[372655358,1752735060565,-2218.975137,0.00022512,7]
[372655359,1752735060575,-2218.975137,0.00022512,7]
[372655360,1752735060584,-732.55,0.00022514,2]
[372655361,1752735060593,-551.29,0.00022514,2]
[372655362,1752735060603,-460.0,0.00022514,2]
[372655363,1752735060613,-2703.32,0.00022514,2]
[372655364,1752735060622,-799.66,0.00022514,2]
[372655365,1752735060632,-460.0,0.00022514,2]
[372655366,1752735060642,-724.56,0.00022514,2]
[372655367,1752735060651,-460.0,0.00022515,2]
[372655368,1752735060662,-1211.48,0.00022515,2]